Cogmind - Beta 11 X8 @@@ ROGUE MODE // 2021.11.09 @ 19:12:06 Player: Runia Result: Destroyed by D-53 Grenadier with Mini Grenade Launcher Performance ------------- Evolutions (0) 0 Regions Visited (2) 400 Robots Destroyed (36) 180 Value Destroyed (734) 734 Prototype IDs (3) 60 Alien Tech Used (0) 0 Bonus (0) 0 TOTAL SCORE: 1374 Bonus ------- None Cogmind --------- Core Integrity 0/250 Matter 275/300 Energy 244/250 System Corruption 0% Temperature Cool (97) Movement Treading (160) Location -10/Mines Parts ------- > --- POWER (1) -------- Ion Engine > --- PROPULSION (2) --- Light Treads Light Treads > --- UTILITY (2) ------ Large Storage Unit Medium Armor Plating > --- WEAPON (2) ------- Small Laser Small Laser > --- INVENTORY (15) --- Ion Engine Light Treads Improved Aluminum Leg Improved Aluminum Leg Improved Aluminum Leg Improved Aluminum Leg Experimental Sensor Array Light Armor Plating Medium Armor Plating Medium Armor Plating Medium Laser Small Laser Light Assault Rifle Peak State ------------ > --- POWER ------------ Ion Engine > --- PROPULSION ------- Improved Aluminum Leg Improved Aluminum Leg > --- UTILITY ---------- Large Storage Unit Medium Armor Plating > --- WEAPON ----------- Small Laser Small Laser > --- INVENTORY -------- Ion Engine Light Treads Light Treads Light Treads Light Treads Light Treads Improved Aluminum Leg Improved Aluminum Leg Light Armor Plating Medium Armor Plating Medium Armor Plating Medium Armor Plating Medium Laser Small Laser Light Assault Rifle [Rating: 12] Favorites ----------- Power Ion Engine Engine Ion Engine Propulsion Improved Aluminum Leg Treads Light Treads Leg Improved Aluminum Leg Utility Large Storage Unit Storage Large Storage Unit Processor Transport Network Coupler Protection Medium Armor Plating Weapon Small Laser Energy Gun Small Laser Ballistic Gun Assault Rifle Build | -11 -10 -10 ------- Run | Scr Mat Min Slots Evolved . | . . . Power . | . . . Propulsion . | . . . Utility . | . . . Weapon . | . . . Parts Attached 27 | 2 22 3 Power 4 | . 4 . Engine 4 | . 4 . Core . | . . . Reactor . | . . . Propulsion 11 | 2 7 2 Treads 9 | 2 5 2 Leg 2 | . 2 . Wheel . | . . . Hover . | . . . Flight . | . . . Utility 8 | . 7 1 Device . | . . . Storage 3 | . 3 . Processor 1 | . 1 . Hackware . | . . . Protection 4 | . 3 1 Artifact . | . . . Weapon 4 | . 4 . Energy Gun 3 | . 3 . Energy Cannon . | . . . Ballistic Gun 1 | . 1 . Ballistic Cannon . | . . . Launcher . | . . . Special Weapon . | . . . Impact Weapon . | . . . Slashing Weapon . | . . . Piercing Weapon . | . . . Special Melee Weapon . | . . . Unidentified Prototypes . | . . . Parts Lost 5 | . 4 1 Power 1 | . 1 . Propulsion 1 | . 1 . Utility 1 | . . 1 Weapon 2 | . 2 . Highest Loss Streak 3 | . 3 1 Average Slot Usage (%) 97 | . 97 100 Engine 13 | . 13 14 Treads 12 | . 13 8 Leg 15 | . 14 20 Storage 14 | . 14 14 Processor 2 | . 2 . Protection 10 | . 9 14 Energy Gun 16 | . 14 28 Ballistic Gun 11 | . 12 . Naked Turns . | . . . Heaviest Build 35 | 14 35 34 Greatest Support 40 | 40 40 40 Greatest Overweight (x) 1 | . 1 1 Average Overweight (x) . | . . . Largest Inventory Capacity 15 | 8 15 15 Average Capacity 14 | 8 14 15 Most Carried 15 | 5 14 15 Average Carried 11 | 3 10 14 Final Capacity 15 | 8 15 15 Final Carried 14 | 1 14 13 Class Distribution -------------------- 100% | Mutant Dominant Class ---------------- Mutant | -10/Materials Mutant | -10/Mines Resources | -11 -10 -10 ----------- Run | Scr Mat Min Matter Collected 840 | 200 640 . Remotely . | . . . Salvage Created 1195 | . 1067 128 Parts 79 | . 62 17 Haulers Intercepted 2 | . 2 . Recyclers Shooed 2 | . 2 . Parts Field Recycled . | . . . Retrieved Matter . | . . . Parts Self-Destructed . | . . . Prevented . | . . . Kills | -11 -10 -10 ------- Run | Scr Mat Min Combat Hostiles Destroyed 26 | . 20 6 Guns 25 | . 19 6 AOE 1 | . 1 . Classes Destroyed 7 | . 6 1 Worker 2 | . 2 . Hauler 2 | . 2 . Recycler 4 | . 4 . Watcher 2 | . 2 . Swarmer 11 | . 6 5 Grunt 14 | . 14 . Demolisher 1 | . . 1 Best Kill Streak 4 | . 4 3 Combat Bots Only 3 | . 3 3 Max Kills in Single Turn 2 | . 2 2 Gunslinging . | . . . Exploded 1 | . 1 . Melee . | . . . Uniques/NPCs Destroyed . | . . . Combat | -11 -10 -10 -------- Run | Scr Mat Min Damage Taken 1642 | . 1036 606 Core 288 | . 137 151 Absorbed by Shields . | . . . Core Remaining (%) 100 | 100 . . Volleys Fired 113 | . 100 13 Largest 2 | . 2 2 Hottest 80 | . 80 80 Shots Fired 211 | . 185 26 Gun 211 | . 185 26 Cannon . | . . . Launcher . | . . . Special . | . . . Kinetic 139 | . 139 . Thermal 72 | . 46 26 Explosive . | . . . Electromagnetic . | . . . Robot Hit Streak 9 | . 9 4 Robot Miss Streak 8 | . 8 2 Penetration Max . | . . . Secondary Targets 2 | . 1 1 Max Gunslinging Chain 1 | . 1 1 Shots Hit Robots 108 | . 92 16 Core Hits 57 | . 47 10 Critical Kills 1 | . 1 . Critical Parts Destroyed . | . . . Critical Strikes 1 | . 1 . Destroy 1 | . 1 . Melee Attacks . | . . . Impact . | . . . Slashing . | . . . Piercing . | . . . Sneak Attacks . | . . . Combat Hostiles . | . . . Follow-up Attacks . | . . . Damage Inflicted 2015 | . 1816 199 Guns 1340 | . 1141 199 Cannons . | . . . Explosions 675 | . 675 . Melee . | . . . Ramming . | . . . Kinetic 922 | . 922 . Thermal 1093 | . 894 199 Explosive . | . . . Electromagnetic . | . . . Impact . | . . . Slashing . | . . . Piercing . | . . . Highest Corruption . | . . . Average Corruption . | . . . Corruption Purged . | . . . Overload Shots . | . . . Overflow Damage 339 | . 339 . Projectiles . | . . . Explosions 339 | . 339 . Melee . | . . . Knockbacks . | . . . Impact . | . . . Kinetic . | . . . Secondary . | . . . Self-Inflicted Damage 226 | . 226 . Shots 2 | . 2 . Rammed . | . . . Targets Rammed . | . . . Kicked . | . . . Crushed . | . . . Highest Temperature 186 | . 186 108 Average Temperature 47 | . 46 49 Received Heat Transfer 330 | . 330 . Siege Activations . | . . . Robots Corrupted . | . . . Combat Hostiles . | . . . Parts Fried . | . . . Impact Corruptions . | . . . Robots Melted . | . . . Combat Hostiles . | . . . Parts Melted 1 | . . 1 Heat Transferred 1350 | . 900 450 Parts Sabotaged . | . . . Parts Stolen . | . . . Parts Stripped . | . . . Power Chain Reactions . | . . . Missiles Intercepted . | . . . Alert | -11 -10 -10 ------- Run | Scr Mat Min Peak Influence 393 | . 393 254 Initial 109 | . . 109 Average 233 | . 241 181 Maximum Alert Level 1 | . 1 1 Low Security (%) 31 | 100 24 81 Level 1 68 | . 75 18 Level 2 . | . . . Level 3 . | . . . Level 4 . | . . . Level 5 . | . . . High Security . | . . . Max Security . | . . . Squads Dispatched 7 | . 7 . Investigation 4 | . 4 . Extermination . | . . . Reinforcement 3 | . 3 . Assault . | . . . Garrison . | . . . Intercept . | . . . Construction Impeded . | . . . Haulers Reinforced . | . . . Active Scanning Responses . | . . . Cargo Convoy Interrupts . | . . . Stealth | -11 -10 -10 --------- Run | Scr Mat Min Distress Signals 4 | . 4 . Communications Jammed . | . . . Distress Signals . | . . . Times Spotted 57 | . 41 16 Peak Tracking Total 13 | . 4 13 Tactical Retreats 4 | . 3 1 Traps | -11 -10 -10 ------- Run | Scr Mat Min Traps Triggered 1 | . 1 . Indirectly . | . . . Trap Hack Attempts . | . . . Triggered . | . . . Disarmed . | . . . Reprogrammed . | . . . Reused . | . . . Traps Extracted . | . . . Installed . | . . . Triggered . | . . . Machines | -11 -10 -10 ---------- Run | Scr Mat Min Machines Disabled 2 | . 2 . Max in Single Turn 2 | . 2 . Machines Sabotaged . | . . . Garrisons Compromised . | . . . Overloaded Fab Kills . | . . . Hacking | -11 -10 -10 --------- Run | Scr Mat Min Machines Accessed 6 | . 6 . Terminals 4 | . 4 . Fabricators . | . . . Repair Stations . | . . . Recycling Units 2 | . 2 . Scanalyzers . | . . . Garrison Access . | . . . Total Hacks 14 | . 14 . Successful 9 | . 9 . Failed 5 | . 5 . Catastrophic 1 | . 1 . Database Lockouts . | . . . Manual 2 | . 2 . Terminals 10 | . 10 . Fabricators . | . . . Repair Stations . | . . . Recycling Units 4 | . 4 . Scanalyzers . | . . . Garrison Access . | . . . Terminal Hacks 5 | . 5 . Robot Analysis 1 | . 1 . Prototype ID Bank 2 | . 2 . Hauler Manifests 1 | . 1 . Zone Layout 1 | . 1 . Fabricator Hacks . | . . . Repair Station Hacks . | . . . Recycling Unit Hacks 2 | . 2 . Report Inventory 2 | . 2 . Scanalyzer . | . . . Garrison Access Hacks . | . . . Unauthorized Hacks 2 | . 2 . Terminals . | . . . Fabricators . | . . . Repair Stations . | . . . Recycling Units 2 | . 2 . Tunnel 2 | . 2 . Scanalyzers . | . . . Garrison Access . | . . . Data Cores Recovered . | . . . Used . | . . . Hacking Detections 5 | . 5 . Full Trace Events 2 | . 2 . Feedback Events . | . . . Feedback Blocked . | . . . Robot Schematics Acquired . | . . . Robots Built . | . . . Authchips . | . . . Time . | . . . Total Robot Build Rating . | . . . Part Schematics Acquired . | . . . Parts Built . | . . . Authchips . | . . . Time . | . . . Total Part Build Rating . | . . . Parts Repaired . | . . . Time . | . . . Parts Recycled . | . . . Recycled Matter . | . . . Retrieved Matter . | . . . Retrieved Components . | . . . Parts Scanalyzed . | . . . Part Schematics Acquired . | . . . Parts Damaged . | . . . Bothacking | -11 -10 -10 ------------ Run | Scr Mat Min Used RIF Installer . | . . . Robots Hacked . | . . . Non-combat . | . . . Combat . | . . . Robot Hacks Applied . | . . . Relay Couplers Released . | . . . Fabnet Peak Effective % . | . . . Robots Rewired . | . . . Allies Hacked . | . . . Hacks Repelled . | . . . Allies | -11 -10 -10 -------- Run | Scr Mat Min Total Allies . | . . . Largest Group . | . . . Highest-Rated Group . | . . . Highest-Rated Ally . | . . . Total Orders . | . . . Ally Attacks . | . . . Total Damage . | . . . Kills . | . . . Allies Corrupted . | . . . Allies Melted . | . . . Intel | -11 -10 -10 ------- Run | Scr Mat Min Robot Analysis Total 1 | . 1 . Derelict Logs Recovered . | . . . Drone Launches . | . . . Drone Recoveries . | . . . Exploration | -11 -10 -10 ------------- Run | Scr Mat Min Turns Passed 2262 | 5 1974 283 Spaces Moved 1039 | 1 910 128 Core . | . . . Treads 451 | 1 419 31 Legs 588 | . 491 97 Wheels . | . . . Hover . | . . . Flight . | . . . Fastest Speed 160 | 160 160 160 Average Speed 176 | 160 176 182 Slowest Speed 190 | 160 190 190 Overloaded Moves . | . . . Propulsion Burnouts . | . . . Robots Hopped . | . . . Cave-ins Triggered . | . . . Exploration Rate (%) 41 | 2 95 28 Regions Visited 2 Branch Regions 1 Pre-discovered Areas 2 | . 2 . Known Exits Taken . | . . . Unknown Exits Taken 2 | 1 1 . Scrap Searched 1 | . . 1 Spaces Dug . | . . . Terrain Destroyed 39 | . 39 . Melee . | . . . Projectile . | . . . AOE 39 | . 39 . Terrain Rammed . | . . . Walls Destroyed . | . . . Machines Disabled . | . . . Actions | -11 -10 -10 --------- Run | Scr Mat Min Total 1255 | 7 1095 153 Wait 37 | . 32 5 Move 1037 | . 909 128 Hop . | . . . Pick Up 20 | . 18 2 Fast Attach 6 | . 6 . Attach 8 | 2 5 1 Detach . | . . . Swap 13 | . 11 2 Drop 21 | 5 14 2 Fire 113 | . 100 13 Melee . | . . . Ram . | . . . Kick . | . . . Crush . | . . . Escape Stasis . | . . . Rewire . | . . . Trap . | . . . Miscellaneous . | . . . Route ------- -11/Scrapyard -10/Materials (discovered 5 exits: [*Mat x3] / [*Min x2]) -10/Mines (discovered 1 exit: [*Mat]) History --------- Turn | Location | Event 6 | -11/Scrapyard | Discovered new exit (range 0) 6 | -11/Scrapyard | Entered Materials 302 | -10/Materials | Discovered new exit (range 12) 313 | -10/Materials | Build established: Mutant 361 | -10/Materials | Discovered new exit (range 8) 769 | -10/Materials | Discovered new exit (range 6) 847 | -10/Materials | Lost 3 parts (1p1n1w) 1325 | -10/Materials | Core integrity fell below 50% 1405 | -10/Materials | Discovered new exit (range 9) 1660 | -10/Materials | Discovered new exit (range 11) 1980 | -10/Materials | Entered Mines 2065 | -10/Mines | Found a damaged Exp. Sensor Array with a note attached 2070 | -10/Mines | Found Prototype Device 2129 | -10/Mines | Discovered new exit (range 7) 2234 | -10/Mines | Assembled infested the area 2252 | -10/Mines | Core integrity fell below 20% 2263 | -10/Mines | Destroyed by D-53 Grenadier with Mini Grenade Launcher Last Messages --------------- squad. 02249_ C-30 ARC bursts open, deploying its payload. 02249_ D-53 Grenadier unfolds itself. 02251_ as-66685 destroyed. 02251_ as-43931 destroyed. 02251_ HV Slug penetrates as-73607. 02251_ as-73607 suffers critical hit (Destroy). 02251_ HV Slug penetrates as-73607. 02251_ as-73607 destroyed. 02253_ as-86581 destroyed. 02253_ as-12894 destroyed. 02253_ as-32975 destroyed. 02255_ as-98390 destroyed. 02255_ as-27435 destroyed. 02257_ Med. Armor Plating destroyed. 02258_ HV Slug penetrates Wall. 02262_ The unstable cave ceiling collapses. 02262_ Launcher Guidance Computer melted. 02262_ D-53 Grenadier destroyed. 02262_ Switching to secondary target: D-53 Grenadier. Map ----- +----------------------------------------------------+ | | | ?????????????????????????????????????????????????? | | ?????????????????????????????????###?????????????? | | ???????????????????????????????### #????????????? | | ??????????????????????????????## < ###?????????? | | ?????????????????????????????## #?????????? | | ?????????????????????????????# ####??????? | | ???????????????????????????????? #??????? | | ???????????????????????????????????# !!! #??????? | | ????????????????????????????????#### ! ! #??????? | | ????????????????????????????????# !!!!=#??????? | | ?????????????????????###????????# ## !!!!#??????? | | ????????????????????## ##??????# ## ]%#??????? | | ????????????????????# ##?????# #########??????? | | ????????????????????# ###???# ##?????????????? | | ?????????????????????# ##??# ##????????????? | | ??????????????????????# #### #????????????? | | ??????????????????????## #????????????? | | ??????????????????????## d% ##????????????? | | ??????????????????????# ]= #### ##????????????? | | ???????#??????????##?## !%! #?## #????????????? | | ??????## ????????# # *= ### #????????????? | | ??? ### =?????## ## #????????????? | | ?? % *% #;## # # ##???????????? | | ?? = % # ##??????????? | | ???# % @ ## ##?????????? | | ???# ###### #?????????? | | ???????????????#### #?????????? | | ???????????????# ### #?????????? | | ??????????????# #?## #?????????? | | ??????????????# #### ##?????????? | | ??????????????## #??????????? | | ???????????????##### t #??????????? | | ???????????????????## ###### ##??????????? | | ????????????????????## ##????# #???????????? | | ?????????????????????# ##?????# #???????????? | | ????????????????????? ##???#### #???????????? | | ???????????????????? #????#*=*% #???????????? | | ??????????????????? #????# %=%#???????????? | | ??????????????????? ## ##????# =####???????????? | | ?????????????????? ?#####?????# #??????????????? | | ??????????????????????????????## #??????????????? | | ?????????????????????????????## ##??####???????? | | ?????????????????????????????# #### ##??????? | | ?????????????????????????????# ## #??????? | | ?????????????????????????????# #??????? | | ?????????????????????????????# """ ##??????? | | ????????????????????????????# """ ##???????? | | ???????????????????????????# """ ##???????? | | ??????????????????????????# #???????? | +----------------------------------------------------+ Best States ------------- Heat Dissipation 25 Energy Generation 10 Energy Capacity 250 Matter Stores 300 Matter Capacity 300 Sight Range 16 Terrain Scan Density 10 Armor Coverage 225 Evasion (%) 40 Recoil Reduction 2 Item Schematics ----------------- None Robot Schematics ------------------ None Fabricated ------------ Nothing Alien Tech Used ----------------- None Achievements -------------- None Challenges ------------ None Game ------ Seed MatterNovaBox Manual? 0 Play Time 00:12:28 Cumulative 454.9 hours Start 2021.11.09 @ 18:57:44 End 2021.11.09 @ 19:12:06 Sessions 1 Manual Loads 0 Difficulty Rogue Special Mode None Game No. 454 Rogue 454 Adventurer 0 Explorer 0 Win Type - Total 9 Types 8/0/0/1/0/0/0/0/0 Lore% 80 Gallery% 93 Achievement% 70 Wizard Run 0 Options --------- ASCII 0 Keyboard 0 Movement Mouse Keybinds 1 Fullscreen 2 Font 24/Smallcaps Map View 76x50 Tactical HUD 1 Map Filters NONE Filters NONE Steam 1 RUN: c6a581f7-97ac-4cbb-be70-34b1346dd078